[Event "*** SCC Grand Prix: Titled Tuesday Blitz"]
[Site "Chess.com"]
[Date "2020.08.11"]
[Round "9"]
[White "beto-betun"]
[Black "Gvetadze"]
[Result "0-1"]
[WhiteElo "2150"]
[BlackElo "2404"]
[TimeControl "180+1"]
[EndTime "11:43:54 PDT"]
[Termination "Gvetadze won by resignation"]

1. d4 {[%clk 0:03:00.9]} 1... Nf6 {[%clk 0:03:00.9]} 2. Nf3 {[%clk 0:03:00.4]}
2... g6 {[%clk 0:03:01.8]} 3. g3 {[%clk 0:03:00]} 3... Bg7 {[%clk 0:03:02.2]} 4.
Bg2 {[%clk 0:03:00.3]} 4... O-O {[%clk 0:03:03.1]} 5. O-O {[%clk 0:03:00.3]}
5... d6 {[%clk 0:03:04]} 6. c4 {[%clk 0:03:00.1]} 6... Nbd7 {[%clk 0:03:04.9]}
7. Nc3 {[%clk 0:03:00.4]} 7... c6 {[%clk 0:03:05.4]} 8. e4 {[%clk 0:02:55.2]}
8... Qc7 {[%clk 0:03:05.7]} 9. Re1 {[%clk 0:02:54.5]} 9... e5 {[%clk 0:03:06]}
10. h3 {[%clk 0:02:32.2]} 10... exd4 {[%clk 0:03:01.6]} 11. Nxd4 {[%clk
0:02:32.7]} 11... Re8 {[%clk 0:03:01.3]} 12. Bf4 {[%clk 0:02:20.7]} 12... Ne5
{[%clk 0:02:58.6]} 13. b3 {[%clk 0:02:07.3]} 13... h6 {[%clk 0:02:56.7]} 14. Rc1
{[%clk 0:02:01.9]} 14... Bd7 {[%clk 0:02:55]} 15. Be3 {[%clk 0:01:51.6]} 15...
Rad8 {[%clk 0:02:53.4]} 16. f4 {[%clk 0:01:50.4]} 16... Bc8 {[%clk 0:02:52.9]}
17. Qe2 {[%clk 0:01:42.6]} 17... Ned7 {[%clk 0:02:51.8]} 18. b4 {[%clk
0:01:19.4]} 18... a6 {[%clk 0:02:38.9]} 19. a4 {[%clk 0:01:18]} 19... c5 {[%clk
0:02:35.9]} 20. Nd5 {[%clk 0:01:09.1]} 20... Nxd5 {[%clk 0:02:34.8]} 21. cxd5
{[%clk 0:01:09.4]} 21... Qb8 {[%clk 0:02:26]} 22. bxc5 {[%clk 0:00:50.5]} 22...
Nxc5 {[%clk 0:02:25.7]} 23. Qc2 {[%clk 0:00:38.8]} 23... Bd7 {[%clk 0:02:25.5]}
24. a5 {[%clk 0:00:33.6]} 24... Ba4 {[%clk 0:02:21.4]} 25. Qb1 {[%clk 0:00:30]}
25... Re7 {[%clk 0:02:13.2]} 26. e5 {[%clk 0:00:26.5]} 26... dxe5 {[%clk
0:02:10.4]} 27. Rxc5 {[%clk 0:00:20.5]} 27... exd4 {[%clk 0:02:09.9]} 28. Bd2
{[%clk 0:00:19.3]} 28... Rxe1+ {[%clk 0:01:59.8]} 29. Qxe1 {[%clk 0:00:18.2]}
29... Qd6 {[%clk 0:01:54.7]} 30. Rc1 {[%clk 0:00:16.5]} 30... Re8 {[%clk
0:01:53.3]} 31. Qf2 {[%clk 0:00:16.3]} 31... Bb5 {[%clk 0:01:49.7]} 32. Kh2
{[%clk 0:00:15.6]} 32... Re2 {[%clk 0:01:49.2]} 0-1

[Event "*** SCC Grand Prix: Titled Tuesday Blitz"]
[Site "Chess.com"]
[Date "2020.08.11"]
[Round "9"]
[White "mapleaff"]
[Black "Crazy_girl99"]
[Result "0-1"]
[WhiteElo "2342"]
[BlackElo "2493"]
[TimeControl "180+1"]
[EndTime "11:43:57 PDT"]
[Termination "Crazy_girl99 won by resignation"]

1. d4 {[%clk 0:03:00.9]} 1... d5 {[%clk 0:02:59.1]} 2. c4 {[%clk 0:03:00.6]}
2... c6 {[%clk 0:02:59.7]} 3. Nf3 {[%clk 0:03:00.1]} 3... Nf6 {[%clk 0:03:00.3]}
4. e3 {[%clk 0:02:58.5]} 4... g6 {[%clk 0:02:59.6]} 5. Bd3 {[%clk 0:02:58.6]}
5... Bg7 {[%clk 0:03:00.1]} 6. O-O {[%clk 0:02:59]} 6... O-O {[%clk 0:03:00.6]}
7. Nbd2 {[%clk 0:02:59.3]} 7... Bg4 {[%clk 0:03:00]} 8. h3 {[%clk 0:02:59.2]}
8... Bxf3 {[%clk 0:02:59]} 9. Nxf3 {[%clk 0:03:00.1]} 9... e6 {[%clk 0:02:59.1]}
10. b4 {[%clk 0:02:56.9]} 10... Nbd7 {[%clk 0:02:59.4]} 11. Rb1 {[%clk
0:02:54.9]} 11... a6 {[%clk 0:02:58.7]} 12. a4 {[%clk 0:02:54.2]} 12... Re8
{[%clk 0:02:58]} 13. b5 {[%clk 0:02:49.8]} 13... c5 {[%clk 0:02:56.4]} 14. cxd5
{[%clk 0:02:46.9]} 14... exd5 {[%clk 0:02:56.4]} 15. bxa6 {[%clk 0:02:44.9]}
15... bxa6 {[%clk 0:02:56.3]} 16. dxc5 {[%clk 0:02:42.4]} 16... Nxc5 {[%clk
0:02:56.4]} 17. Bb2 {[%clk 0:02:34]} 17... Rb8 {[%clk 0:02:46.2]} 18. Bd4 {[%clk
0:02:23.3]} 18... Rxb1 {[%clk 0:02:18.9]} 19. Bxb1 {[%clk 0:02:21.5]} 19... Nfe4
{[%clk 0:02:16.6]} 20. Ba2 {[%clk 0:02:02.8]} 20... Qa5 {[%clk 0:01:43.1]} 21.
Bxg7 {[%clk 0:01:56.2]} 21... Kxg7 {[%clk 0:01:41]} 22. Qd4+ {[%clk 0:01:57.1]}
22... Kg8 {[%clk 0:01:36.6]} 23. Qxd5 {[%clk 0:01:54.3]} 23... Rf8 {[%clk
0:01:23.8]} 24. Ne5 {[%clk 0:01:50.2]} 24... Nc3 {[%clk 0:01:21]} 25. Qd2 {[%clk
0:01:39.4]} 25... N5e4 {[%clk 0:01:18]} 26. Bxf7+ {[%clk 0:00:59]} 26... Rxf7
{[%clk 0:01:16.5]} 27. Qd3 {[%clk 0:00:53.3]} 27... Qxe5 {[%clk 0:01:06.7]} 28.
Qxa6 {[%clk 0:00:52.9]} 28... Kg7 {[%clk 0:00:58.7]} 29. Qc4 {[%clk 0:00:46.3]}
29... Nd2 {[%clk 0:00:56.9]} 0-1

[Event "*** SCC Grand Prix: Titled Tuesday Blitz"]
[Site "Chess.com"]
[Date "2020.08.11"]
[Round "9"]
[White "hansen"]
[Black "Murad_Ibrahimli"]
[Result "1-0"]
[WhiteElo "2927"]
[BlackElo "2702"]
[TimeControl "180+1"]
[EndTime "11:44:01 PDT"]
[Termination "hansen won by resignation"]

1. e4 {[%clk 0:03:00.9]} 1... c5 {[%clk 0:02:58.6]} 2. Nf3 {[%clk 0:02:51]} 2...
d6 {[%clk 0:02:55.8]} 3. c3 {[%clk 0:02:45.2]} 3... Nf6 {[%clk 0:02:53.1]} 4.
Be2 {[%clk 0:02:40.2]} 4... Nc6 {[%clk 0:02:49.3]} 5. d3 {[%clk 0:02:39.3]} 5...
Bg4 {[%clk 0:02:46.9]} 6. Nbd2 {[%clk 0:02:39.3]} 6... e6 {[%clk 0:02:46.1]} 7.
O-O {[%clk 0:02:39.4]} 7... Be7 {[%clk 0:02:44.7]} 8. h3 {[%clk 0:02:38.9]} 8...
Bh5 {[%clk 0:02:42.6]} 9. Re1 {[%clk 0:02:38.9]} 9... O-O {[%clk 0:02:42.2]} 10.
Nf1 {[%clk 0:02:33.1]} 10... b5 {[%clk 0:02:13.5]} 11. Ng3 {[%clk 0:02:32.7]}
11... Bg6 {[%clk 0:02:11.4]} 12. Bf1 {[%clk 0:02:27.5]} 12... b4 {[%clk
0:02:09.2]} 13. d4 {[%clk 0:02:10.7]} 13... bxc3 {[%clk 0:02:07.2]} 14. bxc3
{[%clk 0:02:11]} 14... cxd4 {[%clk 0:02:07.2]} 15. cxd4 {[%clk 0:02:11.8]} 15...
d5 {[%clk 0:02:07.3]} 16. e5 {[%clk 0:02:09.4]} 16... Ne4 {[%clk 0:02:05.9]} 17.
a3 {[%clk 0:01:50.4]} 17... Rb8 {[%clk 0:02:00.3]} 18. Qa4 {[%clk 0:01:45.1]}
18... Rb6 {[%clk 0:01:51.4]} 19. Re3 {[%clk 0:01:23.2]} 19... Nxg3 {[%clk
0:01:44]} 20. fxg3 {[%clk 0:01:22.5]} 20... Be4 {[%clk 0:01:44.5]} 21. Rc3
{[%clk 0:01:20]} 21... Qa8 {[%clk 0:01:15.6]} 22. Be3 {[%clk 0:01:18.4]} 22...
Rc8 {[%clk 0:00:47.3]} 23. Ba6 {[%clk 0:01:16]} 23... Rc7 {[%clk 0:00:45.9]} 24.
Rac1 {[%clk 0:01:15.8]} 24... Bd8 {[%clk 0:00:43.3]} 25. Bb5 {[%clk 0:01:08.7]}
1-0

[Event "*** SCC Grand Prix: Titled Tuesday Blitz"]
[Site "Chess.com"]
[Date "2020.08.11"]
[Round "9"]
[White "guillembaches"]
[Black "davidkalashian"]
[Result "1-0"]
[WhiteElo "2413"]
[BlackElo "2553"]
[TimeControl "180+1"]
[EndTime "11:44:01 PDT"]
[Termination "guillembaches won by resignation"]

1. e4 {[%clk 0:03:00.9]} 1... c6 {[%clk 0:02:56.5]} 2. c4 {[%clk 0:02:59.5]}
2... g6 {[%clk 0:02:57.4]} 3. Nc3 {[%clk 0:02:56.9]} 3... Bg7 {[%clk 0:02:58.3]}
4. Nge2 {[%clk 0:02:55.7]} 4... d6 {[%clk 0:02:59.2]} 5. g3 {[%clk 0:02:55.1]}
5... h5 {[%clk 0:02:57.8]} 6. h3 {[%clk 0:02:54]} 6... Nf6 {[%clk 0:02:55.6]} 7.
Bg2 {[%clk 0:02:53.5]} 7... O-O {[%clk 0:02:54.3]} 8. d3 {[%clk 0:02:52.3]} 8...
a6 {[%clk 0:02:52.9]} 9. a4 {[%clk 0:02:51.4]} 9... d5 {[%clk 0:02:45.1]} 10.
exd5 {[%clk 0:02:43.5]} 10... cxd5 {[%clk 0:02:44.6]} 11. cxd5 {[%clk
0:02:43.4]} 11... Nbd7 {[%clk 0:02:34.8]} 12. O-O {[%clk 0:02:32.3]} 12... Nb6
{[%clk 0:02:28.2]} 13. Nf4 {[%clk 0:02:16.2]} 13... Bf5 {[%clk 0:02:26.6]} 14.
Re1 {[%clk 0:01:57.7]} 14... Re8 {[%clk 0:02:16.1]} 15. Be3 {[%clk 0:01:43]}
15... Rc8 {[%clk 0:01:59.9]} 16. Qb3 {[%clk 0:01:34.6]} 16... Nbd7 {[%clk
0:01:59.1]} 17. Qxb7 {[%clk 0:01:34.2]} 17... Rb8 {[%clk 0:01:52.4]} 18. Qxa6
{[%clk 0:01:29.1]} 18... Rxb2 {[%clk 0:01:49.7]} 19. Ne4 {[%clk 0:01:21]} 19...
g5 {[%clk 0:01:42]} 20. Nxg5 {[%clk 0:01:13.8]} 20... Qc8 {[%clk 0:01:09.8]} 21.
Qxc8 {[%clk 0:01:05.9]} 21... Rxc8 {[%clk 0:01:10.7]} 22. a5 {[%clk 0:01:04.7]}
22... Nc5 {[%clk 0:01:00.6]} 23. Bxc5 {[%clk 0:00:58.2]} 23... Rxc5 {[%clk
0:00:59.6]} 24. a6 {[%clk 0:00:58.1]} 1-0

[Event "*** SCC Grand Prix: Titled Tuesday Blitz"]
[Site "Chess.com"]
[Date "2020.08.11"]
[Round "9"]
[White "RusPakhom"]
[Black "Iris77"]
[Result "1-0"]
[WhiteElo "2300"]
[BlackElo "2069"]
[TimeControl "180+1"]
[EndTime "11:44:05 PDT"]
[Termination "RusPakhom won by resignation"]

1. e4 {[%clk 0:03:00.9]} 1... e6 {[%clk 0:03:00.9]} 2. d4 {[%clk 0:03:00.6]}
2... d5 {[%clk 0:02:54]} 3. Nd2 {[%clk 0:02:59]} 3... c5 {[%clk 0:02:52]} 4.
exd5 {[%clk 0:02:55.6]} 4... Qxd5 {[%clk 0:02:51.3]} 5. Ngf3 {[%clk 0:02:55.8]}
5... cxd4 {[%clk 0:02:51.1]} 6. Bc4 {[%clk 0:02:55.5]} 6... Qd6 {[%clk
0:02:49.6]} 7. O-O {[%clk 0:02:51.1]} 7... Nf6 {[%clk 0:02:49.9]} 8. Nb3 {[%clk
0:02:51.1]} 8... Nc6 {[%clk 0:02:48.6]} 9. Nbxd4 {[%clk 0:02:50.8]} 9... Nxd4
{[%clk 0:02:46.5]} 10. Nxd4 {[%clk 0:02:50.8]} 10... a6 {[%clk 0:02:47]} 11. c3
{[%clk 0:02:50.7]} 11... Qc7 {[%clk 0:02:46.7]} 12. Bb3 {[%clk 0:02:50]} 12...
Bd6 {[%clk 0:02:45.1]} 13. h3 {[%clk 0:02:47.9]} 13... O-O {[%clk 0:02:36.2]}
14. Qe2 {[%clk 0:02:45.4]} 14... b5 {[%clk 0:02:30.7]} 15. Bg5 {[%clk
0:02:44.5]} 15... Nd7 {[%clk 0:02:23.6]} 16. Rad1 {[%clk 0:02:38.9]} 16... Nc5
{[%clk 0:02:18.3]} 17. Bc2 {[%clk 0:02:37.7]} 17... h6 {[%clk 0:02:14.5]} 18.
Be3 {[%clk 0:02:33.1]} 18... Bb7 {[%clk 0:02:14.2]} 19. Qh5 {[%clk 0:02:07.2]}
19... Be4 {[%clk 0:01:57.4]} 20. Bxe4 {[%clk 0:02:00.6]} 20... Nxe4 {[%clk
0:01:52.2]} 21. Bxh6 {[%clk 0:01:38.8]} 21... gxh6 {[%clk 0:01:42.6]} 22. Qg4+
{[%clk 0:01:38.5]} 22... Ng5 {[%clk 0:01:35.9]} 23. h4 {[%clk 0:01:32.2]} 23...
f5 {[%clk 0:01:22.8]} 24. Qh5 {[%clk 0:01:16.7]} 24... Nf7 {[%clk 0:01:20]} 25.
Nxe6 {[%clk 0:01:11.1]} 25... Bh2+ {[%clk 0:00:55.6]} 26. Kh1 {[%clk 0:01:10.3]}
26... Qe5 {[%clk 0:00:51.2]} 27. Qg6+ {[%clk 0:01:00.9]} 27... Kh8 {[%clk
0:00:46.1]} 28. Rfe1 {[%clk 0:01:00.5]} 1-0

[Event "*** SCC Grand Prix: Titled Tuesday Blitz"]
[Site "Chess.com"]
[Date "2020.08.11"]
[Round "9"]
[White "adotand"]
[Black "Nikithebest"]
[Result "0-1"]
[WhiteElo "2738"]
[BlackElo "2437"]
[TimeControl "180+1"]
[EndTime "11:44:07 PDT"]
[Termination "Nikithebest won by resignation"]

1. d4 {[%clk 0:03:00.9]} 1... Nf6 {[%clk 0:03:00.1]} 2. c4 {[%clk 0:03:00.2]}
2... c5 {[%clk 0:03:00.4]} 3. Nf3 {[%clk 0:02:59.1]} 3... cxd4 {[%clk
0:03:00.2]} 4. Nxd4 {[%clk 0:03:00]} 4... e5 {[%clk 0:03:01.1]} 5. Nb3 {[%clk
0:02:59.5]} 5... d5 {[%clk 0:02:59.9]} 6. cxd5 {[%clk 0:02:58.8]} 6... Qxd5
{[%clk 0:03:00.8]} 7. Qc2 {[%clk 0:02:49.6]} 7... Bb4+ {[%clk 0:02:58.1]} 8. Nc3
{[%clk 0:02:49.9]} 8... O-O {[%clk 0:02:54.6]} 9. Bd2 {[%clk 0:02:50.1]} 9...
Qe6 {[%clk 0:02:40.6]} 10. e3 {[%clk 0:02:46.3]} 10... Nc6 {[%clk 0:02:37.6]}
11. a3 {[%clk 0:02:45.5]} 11... Be7 {[%clk 0:02:33.2]} 12. Be2 {[%clk 0:02:43]}
12... Bd7 {[%clk 0:02:31.4]} 13. O-O {[%clk 0:02:43.4]} 13... Rac8 {[%clk
0:02:28.8]} 14. Rad1 {[%clk 0:02:28.8]} 14... Rfd8 {[%clk 0:02:20.8]} 15. Nc1
{[%clk 0:02:28.7]} 15... e4 {[%clk 0:02:19]} 16. Qb1 {[%clk 0:02:22.7]} 16...
Qe5 {[%clk 0:02:17.2]} 17. Nb5 {[%clk 0:02:21]} 17... Ng4 {[%clk 0:02:07.9]} 18.
Bxg4 {[%clk 0:02:14.7]} 18... Bxg4 {[%clk 0:02:08.2]} 19. f3 {[%clk 0:01:51.1]}
19... exf3 {[%clk 0:02:01.7]} 20. gxf3 {[%clk 0:01:52]} 20... Bh3 {[%clk
0:01:57.9]} 21. Rf2 {[%clk 0:01:47.8]} 21... Qxb5 {[%clk 0:01:53.8]} 22. Kh1
{[%clk 0:01:48]} 22... Ne5 {[%clk 0:01:33.6]} 23. Rg1 {[%clk 0:01:46.5]} 23...
Bh4 {[%clk 0:01:28.9]} 24. a4 {[%clk 0:01:21.6]} 24... Qc6 {[%clk 0:01:18.3]}
25. Bc3 {[%clk 0:00:29.2]} 25... Bxf2 {[%clk 0:01:06.1]} 0-1

[Event "*** SCC Grand Prix: Titled Tuesday Blitz"]
[Site "Chess.com"]
[Date "2020.08.11"]
[Round "9"]
[White "HouseOfDurin"]
[Black "Bastiandash"]
[Result "0-1"]
[WhiteElo "2074"]
[BlackElo "2271"]
[TimeControl "180+1"]
[EndTime "11:44:24 PDT"]
[Termination "Bastiandash won on time"]

1. d4 {[%clk 0:03:00.9]} 1... Nf6 {[%clk 0:02:56.4]} 2. Bg5 {[%clk 0:03:01.3]}
2... e6 {[%clk 0:02:52.1]} 3. e4 {[%clk 0:03:00.3]} 3... h6 {[%clk 0:02:52]} 4.
Bxf6 {[%clk 0:03:00.4]} 4... Qxf6 {[%clk 0:02:52.9]} 5. e5 {[%clk 0:03:00.5]}
5... Qd8 {[%clk 0:02:50.9]} 6. f4 {[%clk 0:02:59.9]} 6... c5 {[%clk 0:02:51.8]}
7. d5 {[%clk 0:02:57.6]} 7... d6 {[%clk 0:02:49.3]} 8. c4 {[%clk 0:02:48.6]}
8... Qc7 {[%clk 0:02:37]} 9. Nf3 {[%clk 0:02:43.9]} 9... g5 {[%clk 0:02:19.6]}
10. exd6 {[%clk 0:02:33.4]} 10... Bxd6 {[%clk 0:02:17.6]} 11. fxg5 {[%clk
0:02:21.9]} 11... hxg5 {[%clk 0:02:12.2]} 12. Nc3 {[%clk 0:01:58.1]} 12... g4
{[%clk 0:01:59.2]} 13. Nb5 {[%clk 0:01:51.1]} 13... Bg3+ {[%clk 0:01:53.3]} 14.
hxg3 {[%clk 0:01:24.4]} 14... Qxg3+ {[%clk 0:01:54.2]} 15. Kd2 {[%clk
0:01:21.7]} 15... Rxh1 {[%clk 0:01:49.4]} 16. d6 {[%clk 0:01:10.8]} 16... Na6
{[%clk 0:01:28.8]} 17. Nc7+ {[%clk 0:00:16.1]} 17... Nxc7 {[%clk 0:01:26.4]} 18.
dxc7 {[%clk 0:00:17]} 18... gxf3 {[%clk 0:01:26.6]} 19. Kc2 {[%clk 0:00:12.4]}
19... Bd7 {[%clk 0:01:22.7]} 20. Qxf3 {[%clk 0:00:10.2]} 20... Qxf3 {[%clk
0:01:18]} 21. gxf3 {[%clk 0:00:11.1]} 21... Bc6 {[%clk 0:01:14.9]} 22. Rd1
{[%clk 0:00:08.2]} 22... Rc8 {[%clk 0:01:14]} 23. Bd3 {[%clk 0:00:04]} 23...
Rxd1 {[%clk 0:01:05.9]} 24. Kxd1 {[%clk 0:00:04.9]} 24... Rxc7 {[%clk
0:01:06.4]} 25. Kc2 {[%clk 0:00:03.4]} 25... Rc8 {[%clk 0:01:05.9]} 26. f4
{[%clk 0:00:02]} 26... Ke7 {[%clk 0:01:06.8]} 0-1

[Event "*** SCC Grand Prix: Titled Tuesday Blitz"]
[Site "Chess.com"]
[Date "2020.08.11"]
[Round "9"]
[White "HrvojeZagreb"]
[Black "Xeslu"]
[Result "1/2-1/2"]
[WhiteElo "2140"]
[BlackElo "2296"]
[TimeControl "180+1"]
[EndTime "11:44:25 PDT"]
[Termination "Game drawn by agreement"]

1. d4 {[%clk 0:03:00.9]} 1... d5 {[%clk 0:02:59.3]} 2. Bf4 {[%clk 0:02:59.9]}
2... c6 {[%clk 0:02:58.2]} 3. e3 {[%clk 0:02:59.7]} 3... Qb6 {[%clk 0:02:58.2]}
4. Qc1 {[%clk 0:02:58.3]} 4... Nf6 {[%clk 0:02:56.7]} 5. Nd2 {[%clk 0:02:58.4]}
5... Bf5 {[%clk 0:02:56.3]} 6. Ngf3 {[%clk 0:02:58.3]} 6... e6 {[%clk
0:02:35.3]} 7. h3 {[%clk 0:02:54.7]} 7... h6 {[%clk 0:02:32.6]} 8. g4 {[%clk
0:02:54.7]} 8... Bh7 {[%clk 0:02:32.5]} 9. Ne5 {[%clk 0:02:49.9]} 9... Nbd7
{[%clk 0:02:31.4]} 10. Nxd7 {[%clk 0:02:48.6]} 10... Nxd7 {[%clk 0:02:30.2]} 11.
Bg2 {[%clk 0:02:45.7]} 11... Be7 {[%clk 0:02:29.8]} 12. O-O {[%clk 0:02:44.2]}
12... O-O {[%clk 0:02:29.8]} 13. a4 {[%clk 0:02:42.5]} 13... f5 {[%clk
0:02:29.9]} 14. Nf3 {[%clk 0:02:34.8]} 14... g5 {[%clk 0:02:24.7]} 15. Ne5
{[%clk 0:02:32.1]} 15... Nf6 {[%clk 0:02:19.5]} 16. Bg3 {[%clk 0:02:26.6]} 16...
fxg4 {[%clk 0:02:12.9]} 17. hxg4 {[%clk 0:02:26.4]} 17... Qd8 {[%clk 0:02:12.7]}
18. a5 {[%clk 0:02:24.3]} 18... a6 {[%clk 0:02:12.7]} 19. f4 {[%clk 0:02:03.5]}
19... Ne4 {[%clk 0:02:10.8]} 20. Bxe4 {[%clk 0:01:53.1]} 20... Bxe4 {[%clk
0:02:10.1]} 21. Kf2 {[%clk 0:01:53.6]} 21... Kg7 {[%clk 0:02:04.8]} 22. c4
{[%clk 0:01:47.9]} 22... Bf6 {[%clk 0:02:02.6]} 23. Ke2 {[%clk 0:01:41.3]} 23...
Rc8 {[%clk 0:01:59.5]} 24. c5 {[%clk 0:01:39.8]} 24... Bxe5 {[%clk 0:01:49.9]}
25. fxe5 {[%clk 0:01:36.4]} 25... Qe8 {[%clk 0:01:43.7]} 26. Rxf8 {[%clk
0:01:34.9]} 26... Qxf8 {[%clk 0:01:43.3]} 27. Qf1 {[%clk 0:01:34.1]} 27... Qe7
{[%clk 0:01:42.4]} 28. Qf6+ {[%clk 0:01:05.2]} 28... Qxf6 {[%clk 0:01:37.1]} 29.
exf6+ {[%clk 0:01:06.1]} 29... Kxf6 {[%clk 0:01:38]} 30. Rf1+ {[%clk 0:01:06.5]}
1/2-1/2

[Event "*** SCC Grand Prix: Titled Tuesday Blitz"]
[Site "Chess.com"]
[Date "2020.08.11"]
[Round "9"]
[White "Jumbo"]
[Black "Rainmond"]
[Result "0-1"]
[WhiteElo "2859"]
[BlackElo "2701"]
[TimeControl "180+1"]
[EndTime "11:44:32 PDT"]
[Termination "Rainmond won by resignation"]

1. e4 {[%clk 0:03:00.5]} 1... c5 {[%clk 0:02:57.8]} 2. Nf3 {[%clk 0:03:00.7]}
2... d6 {[%clk 0:02:58.1]} 3. d4 {[%clk 0:03:00.4]} 3... Nf6 {[%clk 0:02:58.4]}
4. dxc5 {[%clk 0:02:57.5]} 4... Nxe4 {[%clk 0:02:58.1]} 5. cxd6 {[%clk
0:02:57.7]} 5... Nc6 {[%clk 0:02:58.2]} 6. Bf4 {[%clk 0:02:40.8]} 6... Qb6
{[%clk 0:02:45.8]} 7. Bg3 {[%clk 0:02:14.8]} 7... Qxb2 {[%clk 0:02:44.5]} 8.
Nbd2 {[%clk 0:02:15.1]} 8... Nc3 {[%clk 0:02:30.9]} 9. Qc1 {[%clk 0:02:03.4]}
9... Qxc1+ {[%clk 0:02:26.1]} 10. Rxc1 {[%clk 0:02:04.3]} 10... exd6 {[%clk
0:02:26.3]} 11. Nc4 {[%clk 0:02:02.3]} 11... Be6 {[%clk 0:02:11.1]} 12. a3
{[%clk 0:01:51.9]} 12... O-O-O {[%clk 0:02:05.6]} 13. Bd3 {[%clk 0:01:44.6]}
13... Bxc4 {[%clk 0:01:37.2]} 14. Bxc4 {[%clk 0:01:42.2]} 14... d5 {[%clk
0:01:35.9]} 15. Bd3 {[%clk 0:01:42.4]} 15... Re8+ {[%clk 0:01:32.3]} 16. Kf1
{[%clk 0:01:36.9]} 16... Bxa3 {[%clk 0:01:28.6]} 17. Ra1 {[%clk 0:01:29.8]}
17... Bb2 {[%clk 0:01:27.9]} 18. Bf5+ {[%clk 0:01:24.9]} 18... Kd8 {[%clk
0:01:27.7]} 19. Bh4+ {[%clk 0:01:24.2]} 19... f6 {[%clk 0:01:26.8]} 20. Re1
{[%clk 0:01:24.3]} 20... Rxe1+ {[%clk 0:01:24.3]} 21. Nxe1 {[%clk 0:01:25.2]}
21... Nd4 {[%clk 0:01:12.5]} 22. Bd3 {[%clk 0:01:24.3]} 22... a5 {[%clk
0:01:12.6]} 23. g4 {[%clk 0:01:23.1]} 23... a4 {[%clk 0:01:12.2]} 24. g5 {[%clk
0:01:22.3]} 24... Rf8 {[%clk 0:01:11.4]} 25. gxf6 {[%clk 0:01:21.5]} 25... gxf6
{[%clk 0:01:12.3]} 26. Bxh7 {[%clk 0:01:10.4]} 26... a3 {[%clk 0:01:12.3]} 27.
Nd3 {[%clk 0:01:10.8]} 27... a2 {[%clk 0:01:12.2]} 28. Kg2 {[%clk 0:01:10.9]}
28... a1=Q {[%clk 0:01:11.1]} 29. Rxa1 {[%clk 0:01:11.2]} 29... Bxa1 {[%clk
0:01:12]} 30. Nf4 {[%clk 0:01:09.7]} 30... Ne4 {[%clk 0:00:48.2]} 31. Nxd5
{[%clk 0:01:08.8]} 31... Ng5 {[%clk 0:00:40.5]} 32. Nxf6 {[%clk 0:01:01.2]}
32... Ndf3 {[%clk 0:00:40.3]} 0-1

[Event "*** SCC Grand Prix: Titled Tuesday Blitz"]
[Site "Chess.com"]
[Date "2020.08.11"]
[Round "9"]
[White "deribas12345"]
[Black "Region_07"]
[Result "1-0"]
[WhiteElo "2602"]
[BlackElo "2409"]
[TimeControl "180+1"]
[EndTime "11:44:36 PDT"]
[Termination "deribas12345 won by checkmate"]

1. d4 {[%clk 0:02:56.2]} 1... f5 {[%clk 0:02:58.6]} 2. e4 {[%clk 0:02:55.7]}
2... fxe4 {[%clk 0:02:57.1]} 3. f3 {[%clk 0:02:56.1]} 3... Nf6 {[%clk
0:02:30.6]} 4. fxe4 {[%clk 0:02:51]} 4... d6 {[%clk 0:02:18.2]} 5. Nc3 {[%clk
0:02:49.4]} 5... Nc6 {[%clk 0:02:13.3]} 6. Nf3 {[%clk 0:02:45.7]} 6... Bg4
{[%clk 0:02:12.2]} 7. Bb5 {[%clk 0:02:40.6]} 7... a6 {[%clk 0:02:05.4]} 8. Bxc6+
{[%clk 0:02:39.3]} 8... bxc6 {[%clk 0:02:06.3]} 9. O-O {[%clk 0:02:39.5]} 9...
Qd7 {[%clk 0:01:38.8]} 10. h3 {[%clk 0:02:36.1]} 10... Bxf3 {[%clk 0:01:30.7]}
11. Qxf3 {[%clk 0:02:35.4]} 11... e5 {[%clk 0:01:30]} 12. dxe5 {[%clk
0:02:34.1]} 12... dxe5 {[%clk 0:01:30.9]} 13. Bg5 {[%clk 0:02:32.2]} 13... Bc5+
{[%clk 0:01:29.9]} 14. Kh1 {[%clk 0:02:30.2]} 14... O-O {[%clk 0:01:30.1]} 15.
Rad1 {[%clk 0:02:27.7]} 15... Qe6 {[%clk 0:01:30]} 16. Qf5 {[%clk 0:02:26.6]}
16... Qxf5 {[%clk 0:01:25.6]} 17. Rxf5 {[%clk 0:02:27.5]} 17... Nh5 {[%clk
0:01:21.2]} 18. Kh2 {[%clk 0:02:11.8]} 18... Bd4 {[%clk 0:01:05]} 19. Ne2 {[%clk
0:02:09.2]} 19... Bxb2 {[%clk 0:01:00.7]} 20. g4 {[%clk 0:02:07.2]} 20... Nf6
{[%clk 0:00:52.3]} 21. Bxf6 {[%clk 0:02:05.3]} 21... Rxf6 {[%clk 0:00:49.4]} 22.
Rd7 {[%clk 0:02:02.2]} 22... Rxf5 {[%clk 0:00:41.1]} 23. gxf5 {[%clk 0:01:51.5]}
23... Rb8 {[%clk 0:00:35.4]} 24. Rxc7 {[%clk 0:01:48.7]} 24... Rb4 {[%clk
0:00:35.4]} 25. Ng3 {[%clk 0:01:42.5]} 25... Rc4 {[%clk 0:00:32.8]} 26. Nh5
{[%clk 0:01:42.5]} 26... Rxc2+ {[%clk 0:00:32.9]} 27. Kg3 {[%clk 0:01:42.6]}
27... Rc3+ {[%clk 0:00:29.8]} 28. Kg4 {[%clk 0:01:40]} 28... Re3 {[%clk
0:00:29.1]} 29. Rxg7+ {[%clk 0:01:38.7]} 29... Kf8 {[%clk 0:00:25.2]} 30. f6
{[%clk 0:01:38.6]} 30... c5 {[%clk 0:00:18]} 31. Rxh7 {[%clk 0:01:34]} 31... c4
{[%clk 0:00:18]} 32. Rc7 {[%clk 0:01:20.1]} 32... c3 {[%clk 0:00:17.5]} 33. Ng7
{[%clk 0:01:20.4]} 33... Rxe4+ {[%clk 0:00:13.3]} 34. Kf5 {[%clk 0:01:20.4]}
34... Rf4+ {[%clk 0:00:11]} 35. Kg6 {[%clk 0:01:18.5]} 35... Rxf6+ {[%clk
0:00:06.8]} 36. Kxf6 {[%clk 0:01:18.2]} 36... e4 {[%clk 0:00:06.3]} 37. Rc8#
{[%clk 0:01:17.6]} 1-0